Cogmind - Beta 16.1 @@@ ROGUE MODE // 2026.02.16 @ 14:00:00 Player: Ladmageddon Result: Destroyed by Y-54 Guardian with Gatling Laser Performance ------------- Evolutions (4) 2000 Regions Visited (8) 1600 Robots Destroyed (53) 265 Value Destroyed (1710) 1710 Prototype IDs (8) 160 Alien Tech Used (0) 0 Bonus (313) 313 TOTAL SCORE: 6048 Bonus ------- Follower Combat Kills 313 Cogmind --------- Core Integrity 0/850 Matter 174/300 Energy 11/290 System Corruption 1% Temperature Cool (2) Movement Flying (430) Ox6 Location -6/Factory Parts ------- > --- POWER (3) -------- Improved Deuterium Engine Faulty F-cell Engine > --- PROPULSION (4) --- Biomechanical Wings > --- UTILITY (6) ------ Structural Scanner Force Field Force Field > --- WEAPON (2) ------- Gauss Rifle > --- INVENTORY (5) ---- Improved Medium Laser Peak State ------------ > --- POWER ------------ Improved Deuterium Engine Light Angular Momentum Engine Light Angular Momentum Engine > --- PROPULSION ------- Armored Treads Armored Treads Armored Treads Armored Treads > --- UTILITY ---------- Improved Heat Sink Improved Targeting Computer Improved Light Armor Plating Layered Light Armor Plating Shield Generator > --- WEAPON ----------- Field Laser Precision Grenade Launcher > --- INVENTORY -------- Improved Medium Laser Gauss Rifle Flak Gun [Rating: 49] Favorites ----------- Power Deuterium Engine Engine Deuterium Engine Power Core Micro Nuclear Core Propulsion Improved Flight Unit Treads Light Treads Wheel Armored Huge Wheel Flight Unit Improved Flight Unit Utility Small Storage Unit Device ECM Suite Storage Small Storage Unit Processor Improved Targeting Computer Protection Medium Reactive Plating Weapon Mini Grenade Launcher Energy Gun EM Pulse Gun Ballistic Gun Minigun Launcher Mini Grenade Launcher Special Weapon Mining Laser Build | -11 -10 -9 -9 -8 -7 -7 -7 -6 ------- Run | Yrd Mat Mat Sto Mat Fac Low Low Fac Slots Evolved 8 | . . 2 . 2 2 . . 2 Power 2 | . . . . . 1 . . 1 Propulsion 2 | . . 2 . . . . . . Utility 4 | . . . . 2 1 . . 1 Weapon . | . . . . . . . . . Parts Attached 69 | 8 3 . 13 9 7 . . 29 Power 13 | 1 . . 2 2 2 . . 6 Engine 11 | 1 . . 1 2 1 . . 6 Core 2 | . . . 1 . 1 . . . Reactor . | . . . . . . . . . Propulsion 19 | 2 2 . 4 4 1 . . 6 Treads 8 | . . . 4 . . . . 4 Leg . | . . . . . . . . . Wheel 3 | 2 . . . . 1 . . . Hover . | . . . . . . . . . Flight 8 | . 2 . . 4 . . . 2 Utility 20 | 3 1 . 1 1 3 . . 11 Device 12 | 1 1 . 1 1 . . . 8 Storage 2 | 2 . . . . . . . . Processor 1 | . . . . . 1 . . . Hackware . | . . . . . . . . . Protection 5 | . . . . . 2 . . 3 Artifact . | . . . . . . . . . Weapon 17 | 2 . . 6 2 1 . . 6 Energy Gun 6 | 2 . . 1 1 . . . 2 Energy Cannon . | . . . . . . . . . Ballistic Gun 7 | . . . 3 1 1 . . 2 Ballistic Cannon . | . . . . . . . . . Launcher 3 | . . . 1 . . . . 2 Special Weapon 1 | . . . 1 . . . . . Impact Weapon . | . . . . . . . . . Slashing Weapon . | . . . . . . . . . Piercing Weapon . | . . . . . . . . . Special Melee Weapon . | . . . . . . . . . Unidentified Prototypes 6 | . . . 1 2 . . . 3 Corrupted Parts 1 | 1 . . . . . . . . System Corruption 1 | 1 . . . . . . . . Parts Lost 45 | . . . 7 4 2 5 . 27 Power 9 | . . . 1 1 1 2 . 4 Propulsion 12 | . . . 2 1 . 1 . 8 Utility 14 | . . . 1 1 1 1 . 10 Weapon 10 | . . . 3 1 . 1 . 5 Highest Loss Streak 9 | . . . 5 4 2 5 . 9 To Critical Strikes . | . . . . . . . . . Average Backups 5 | 3 5 7 6 4 5 7 7 4 Power . | . 1 1 . . . . . . Propulsion . | . 1 . . . . 1 1 . Utility 2 | . 1 3 2 1 2 3 3 1 Weapon 2 | 1 2 3 1 3 3 3 3 2 Tool/Special . | . . . . . . . . . Unused Backups 3 | . 2 . 1 . . . . . Power 1 | . . . 1 . . . . . Propulsion 2 | . 2 . . . . . . . Utility . | . . . . . . . . . Weapon . | . . . . . . . . . Tool/Special . | . . . . . . . . . Average Slot Usage (%) 66 | . 93 66 71 95 75 84 61 43 Engine 6 | . 14 11 8 6 5 5 . 5 Core 1 | . . . 1 2 1 5 . . Treads 5 | . . . 22 5 . . . 3 Wheel 2 | . 10 . . . 3 7 7 . Flight 9 | . 17 22 2 29 18 12 7 2 Device 13 | . 14 11 9 25 15 15 15 11 Storage 6 | . 14 11 11 9 7 7 7 2 Processor 3 | . . . . . . 7 7 4 Protection 2 | . . . . . 5 5 . 2 Energy Gun 2 | . 21 11 4 . . . . 1 Ballistic Gun 6 | . . . 5 4 7 8 15 6 Launcher 3 | . . . 3 6 7 5 . 1 Peak Build Rating 49 | 7 7 6 14 26 37 37 24 49 Average Rating 20 | 4 6 6 8 21 27 33 24 22 On Entrance 15 | . 7 6 6 14 20 37 24 24 Avg Prop Armor Cover (%) 2 | . . . . 4 2 1 1 1 Naked Turns 2 | . . . . . . . . 2 Heaviest Build 54 | 15 15 13 16 22 47 47 14 54 Greatest Support 80 | 20 20 8 80 80 28 28 28 80 Greatest Overweight (x) 8 | . 1 1 4 1 2 1 . 8 Average Overweight (x) . | . . 1 . . . . . 1 Largest Inventory Capacity 8 | 8 8 8 8 8 8 8 8 8 Average Capacity 7 | 7 8 8 8 8 8 8 8 5 Most Carried 8 | 6 8 7 8 8 8 8 7 8 Average Carried 5 | 3 5 7 6 4 6 7 7 4 Final Capacity 8 | 8 8 8 8 8 8 8 8 5 Final Carried 8 | 5 7 7 7 4 8 7 7 1 Class Distribution -------------------- 40% | Infiltrator-Mutant 38% | Mutant 16% | Scavenger-Mutant Dominant Class ---------------- Mutant | -10/Materials Mutant | -9/Materials Scavenger-Mutant | -9/Storage Scavenger-Mutant | -8/Materials Infiltrator-Mutant | -7/Factory Infiltrator-Mutant | -7/Lower Caves Infiltrator-Mutant | -7/Lower Caves Mutant | -6/Factory Resources | -11 -10 -9 -9 -8 -7 -7 -7 -6 ----------- Run | Yrd Mat Mat Sto Mat Fac Low Low Fac Matter Collected 1280 | 270 40 . 177 224 60 188 32 289 Remotely . | . . . . . . . . . Salvage Created 1464 | 159 . . 321 117 112 260 . 495 Parts 88 | 13 . . 25 11 8 4 . 27 Haulers Intercepted 2 | . . . 2 . . . . . Recyclers Shooed 1 | . . . . . . . . 1 Parts Field Recycled . | . . . . . . . . . Retrieved Matter . | . . . . . . . . . Parts Self-Destructed 3 | . . . . . . 3 . . Prevented . | . . . . . . . . . Parts Restored . | . . . . . . . . . Kills | -11 -10 -9 -9 -8 -7 -7 -7 -6 ------- Run | Yrd Mat Mat Sto Mat Fac Low Low Fac Combat Hostiles Destroyed 36 | . . . 9 3 5 5 . 14 Guns 11 | . . . 2 1 2 2 . 4 AOE 25 | . . . 7 2 3 3 . 10 Classes Destroyed 12 | 2 . . 5 1 1 1 . 2 Worker 2 | . . . . . . . . 2 Builder 6 | . . . . 1 . . . 5 Tunneler 5 | 5 . . . . . . . . Hauler 2 | . . . 2 . . . . . Recycler 1 | 1 . . . . . . . . Watcher 1 | . . . 1 . . . . . Swarmer 11 | . . . 4 . 4 . . 3 Grunt 13 | . . . 3 2 . 1 . 7 Duelist 3 | . . . . . . 3 . . Sentry 5 | . . . 2 1 . 1 . 1 Hunter 2 | . . . . . . . . 2 Programmer 2 | . . . . . 1 . . 1 Best Kill Streak 11 | 4 . . 5 3 4 5 . 11 Combat Bots Only 5 | . . . 4 3 4 5 . 5 Max Kills in Single Turn 6 | 2 . . 4 2 2 1 . 6 Gunslinging . | . . . . . . . . . Exploded 4 | . . . 4 2 2 1 . 4 Melee . | . . . . . . . . . Uniques/NPCs Destroyed . | . . . . . . . . . Combat | -11 -10 -9 -9 -8 -7 -7 -7 -6 -------- Run | Yrd Mat Mat Sto Mat Fac Low Low Fac Hostile Shots Fired 611 | . 2 3 52 49 17 36 . 452 Missed 190 | . 1 2 11 19 5 10 . 142 Hits 421 | . 1 1 41 30 12 26 . 310 Melee 3 | . . . . . . 3 . . Projectile 418 | . 1 1 41 30 12 23 . 310 AOE 1 | . . . . . . . . 1 Critical Strikes 15 | . . . 4 1 1 2 . 7 Damage Taken 6632 | . 9 18 681 488 419 667 . 4350 Core 1310 | . . 18 146 110 111 74 . 851 Absorbed by Shields 651 | . . . . . . . . 651 Ignored by Resistances 72 | . . . . . 33 39 . . Core Remaining (%) 82 | 100 100 . 59 80 . . 73 . Volleys Fired 123 | 11 2 . 25 21 10 12 . 42 Largest 2 | 2 1 . 2 2 2 2 . 2 Hottest 156 | 80 40 . 156 100 55 55 . 99 Shots Fired 169 | 14 2 . 38 23 16 23 . 53 Gun 129 | 14 2 . 26 12 10 18 . 47 Cannon . | . . . . . . . . . Launcher 26 | . . . 8 1 6 5 . 6 Special 14 | . . . 4 10 . . . . Kinetic 82 | . . . 16 11 10 18 . 27 Thermal 42 | . . . 11 11 . . . 20 Explosive 26 | . . . 8 1 6 5 . 6 Electromagnetic 19 | 14 2 . 3 . . . . . Robot Hit Streak 10 | 3 . . 6 4 3 10 . 7 Robot Miss Streak 7 | 3 2 . 2 7 5 2 . 3 Penetration Max 1 | . . . . . . . . 1 Secondary Targets 1 | . . . . . . 1 . . Max Gunslinging Chain 1 | . . . . . . 1 . . Shots Hit Robots 80 | 8 . . 9 9 7 18 . 29 Core Hits 91 | 6 . . 14 8 9 10 . 44 Critical Kills 1 | . . . 1 . . . . . Critical Parts Destroyed 2 | . . . . 1 . . . 1 Critical Strikes 3 | . . . 1 1 . . . 1 Destroy 3 | . . . 1 1 . . . 1 Melee Attacks . | . . . . . . . . . Impact . | . . . . . . . . . Slashing . | . . . . . . . . . Piercing . | . . . . . . . . . Sneak Attacks . | . . . . . . . . . Combat Hostiles . | . . . . . . . . . Follow-up Attacks . | . . . . . . . . . Damage Inflicted 4340 | 162 4 . 511 235 268 540 . 2620 Guns 1365 | 125 . . 106 123 98 253 . 660 Cannons . | . . . . . . . . . Explosions 2944 | 37 . . 405 88 170 287 . 1957 Melee . | . . . . . . . . . Ramming 7 | . 4 . . . . . . 3 Kinetic 961 | . . . 82 123 98 253 . 405 Thermal 377 | 37 . . 61 24 . . . 255 Explosive 2846 | . . . 344 88 170 287 . 1957 Electromagnetic 149 | 125 . . 24 . . . . . Impact . | . . . . . . . . . Slashing . | . . . . . . . . . Piercing . | . . . . . . . . . Highest Corruption 1 | 1 1 . . . 1 1 1 1 Average Corruption 1 | 1 1 . . . 1 1 1 1 Corruption Purged . | . . . . . . . . . Corruption Blocked . | . . . . . . . . . Effects 12 | . . . . . . 4 . 8 Message Errors 2 | . . . . . . 2 . . Matter Fused 5 | . . . . . . 1 . 4 Heat Flow Errors 3 | . . . . . . 1 . 2 Energy Discharges 1 | . . . . . . . . 1 Parts Rejected 1 | . . . . . . . . 1 Overload Shots . | . . . . . . . . . Overflow Damage 224 | . . . 22 . 21 31 . 150 Projectiles . | . . . . . . . . . Explosions 224 | . . . 22 . 21 31 . 150 Melee . | . . . . . . . . . Knockbacks . | . . . . . . . . . Impact . | . . . . . . . . . Kinetic . | . . . . . . . . . Secondary . | . . . . . . . . . Self-Inflicted Damage 524 | . 2 . 99 28 30 102 . 263 Shots 12 | . . . 3 1 1 3 . 4 Rammed 3 | . 1 . . . . . . 2 Targets Rammed 3 | . 1 . . . . . . 2 Kicked . | . . . . . . . . . Crushed . | . . . . . . . . . Highest Temperature 245 | 36 8 . 50 48 9 182 . 245 Average Temperature 34 | 17 5 . 20 15 9 73 . 51 Received Heat Transfer 1972 | . . . 225 189 . 144 . 1414 Effects 1 | . . . . . . . . 1 Energy Bleed 1 | . . . . . . . . 1 Siege Activations . | . . . . . . . . . Martial Activations . | . . . . . . . . . Shielding Activations . | . . . . . . . . . Robots Disrupted . | . . . . . . . . . Combat Hostiles . | . . . . . . . . . Robots Corrupted . | . . . . . . . . . Combat Hostiles . | . . . . . . . . . Parts Fried . | . . . . . . . . . Impact Corruptions . | . . . . . . . . . Robots Melted . | . . . . . . . . . Combat Hostiles . | . . . . . . . . . Parts Melted 1 | . . . . . . . . 1 Heat Transferred 718 | 50 . . 100 50 . . . 518 Parts Sabotaged . | . . . . . . . . . Parts Stolen . | . . . . . . . . . Parts Stripped . | . . . . . . . . . Power Chain Reactions 2 | 1 . . 1 . . . . . Alert | -11 -10 -9 -9 -8 -7 -7 -7 -6 ------- Run | Yrd Mat Mat Sto Mat Fac Low Low Fac Maximum Alert Level 2 | . . . 2 . . . . . Low Security (%) 91 | 100 100 100 53 100 100 . . 100 Level 1 8 | . . . 43 . . . . . Level 2 . | . . . 2 . . . . . Level 3 . | . . . . . . . . . Level 4 . | . . . . . . . . . Level 5 . | . . . . . . . . . High Security . | . . . . . . . . . Max Security . | . . . . . . . . . Peak Influence 401 | 15 3 . 401 179 96 . . 184 Initial 155 | . 3 . . 155 63 . . 11 Average 80 | 2 . . 179 144 47 . . 47 Influence Increases 1904 | 30 . . 758 264 171 160 . 521 Destroy 0b10 Robot/C 980 | . . . 340 160 100 100 . 280 Destroy 0b10 Robot/NC 90 | 30 . . 20 5 . . . 35 Destroy Leader 218 | . . . 108 30 20 . . 60 Allied During Kill 128 | . . . 120 8 . . . . Successful Hack 5 | . . . 5 . . . . . Disable Machine 165 | . . . 45 30 15 . . 75 Destroy Structure 183 | . . . 75 16 21 . . 71 Partial Spotted 30 | . . . . 15 15 . . . Lose Combat Pursuer 105 | . . . 45 . . 60 . . Influence Decreases 1818 | 25 5 . 390 491 256 156 42 453 Entered New Map 333 | . 2 . . 213 78 21 12 7 Time Decay 1001 | 25 3 . 229 198 158 85 30 273 Lost Part 330 | . . . 47 40 20 50 . 173 Lost Ally 154 | . . . 114 40 . . . . Squads Dispatched 12 | . . . 1 2 3 . . 6 Investigation 2 | . . . . 1 1 . . . Extermination 3 | . . . . . 1 . . 2 Reinforcement 7 | . . . 1 1 1 . . 4 Assault . | . . . . . . . . . Garrison . | . . . . . . . . . Intercept . | . . . . . . . . . Searches Triggered . | . . . . . . . . . Construction Impeded 1 | . . . . . . . . 1 Haulers Reinforced 2 | . . . . . . . . 2 Active Scanning Responses . | . . . . . . . . . Cargo Convoy Interrupts . | . . . . . . . . . Stealth | -11 -10 -9 -9 -8 -7 -7 -7 -6 --------- Run | Yrd Mat Mat Sto Mat Fac Low Low Fac Distress Signals 2 | . . . 1 1 . . . . Communications Jammed . | . . . . . . . . . Distress Signals . | . . . . . . . . . Times Spotted 87 | . 3 1 22 22 6 10 . 23 Peak Tracking Total 9 | . 2 1 5 7 4 9 . 5 Tactical Retreats 11 | . . . 2 5 . 4 . . ECM-based Alert Blocks 9 | . . . . 5 . 4 . . Traps | -11 -10 -9 -9 -8 -7 -7 -7 -6 ------- Run | Yrd Mat Mat Sto Mat Fac Low Low Fac Traps Triggered 4 | . . . . 1 1 . . 2 Indirectly . | . . . . . . . . . Trap Hack Attempts . | . . . . . . . . . Triggered . | . . . . . . . . . Disarmed . | . . . . . . . . . Reprogrammed . | . . . . . . . . . Reused . | . . . . . . . . . Traps Extracted . | . . . . . . . . . Installed . | . . . . . . . . . Triggered . | . . . . . . . . . Machines | -11 -10 -9 -9 -8 -7 -7 -7 -6 ---------- Run | Yrd Mat Mat Sto Mat Fac Low Low Fac Machines Disabled 11 | . . . 3 2 1 . . 5 Max in Single Turn 2 | . . . 1 1 1 . . 2 Garrison Access 1 | . . . . 1 . . . . Machines Repaired . | . . . . . . . . . Machines Dismantled . | . . . . . . . . . Machines Sabotaged . | . . . . . . . . . Overloaded Fab Kills . | . . . . . . . . . Hacking | -11 -10 -9 -9 -8 -7 -7 -7 -6 --------- Run | Yrd Mat Mat Sto Mat Fac Low Low Fac Machines Accessed 6 | . . . 3 2 1 . . . Terminals 4 | . . . 3 1 . . . . Fabricators 1 | . . . . . 1 . . . Repair Stations . | . . . . . . . . . Recycling Units . | . . . . . . . . . Scanalyzers . | . . . . . . . . . Garrison Access 1 | . . . . 1 . . . . Total Hacks 14 | . . . 9 3 2 . . . Successful 7 | . . . 5 2 . . . . Failed 7 | . . . 4 1 2 . . . Catastrophic 1 | . . . . . 1 . . . Database Lockouts . | . . . . . . . . . Manual . | . . . . . . . . . Terminals 10 | . . . 9 1 . . . . Fabricators 2 | . . . . . 2 . . . Repair Stations . | . . . . . . . . . Recycling Units . | . . . . . . . . . Scanalyzers . | . . . . . . . . . Garrison Access 2 | . . . . 2 . . . . Terminal Hacks 6 | . . . 5 1 . . . . Record 1 | . . . 1 . . . . . Prototype ID Bank 1 | . . . 1 . . . . . Alert Level 2 | . . . 2 . . . . . Hauler Manifests 1 | . . . 1 . . . . . Zone Layout 1 | . . . . 1 . . . . Fabricator Hacks . | . . . . . . . . . Repair Station Hacks . | . . . . . . . . . Recycling Unit Hacks . | . . . . . . . . . Scanalyzer . | . . . . . . . . . Garrison Access Hacks 1 | . . . . 1 . . . . Seal Access 1 | . . . . 1 . . . . Unauthorized Hacks . | . . . . . . . . . Terminals . | . . . . . . . . . Fabricators . | . . . . . . . . . Repair Stations . | . . . . . . . . . Recycling Units . | . . . . . . . . . Scanalyzers . | . . . . . . . . . Garrison Access . | . . . . . . . . . Data Cores Recovered . | . . . . . . . . . Used . | . . . . . . . . . Hacking Detections 5 | . . . 3 1 1 . . . Full Trace Events 1 | . . . . . 1 . . . Feedback Events . | . . . . . . . . . Feedback Blocked . | . . . . . . . . . Robot Schematics Acquired . | . . . . . . . . . Robots Built . | . . . . . . . . . Authchips . | . . . . . . . . . Time . | . . . . . . . . . Total Robot Build Rating . | . . . . . . . . . Part Schematics Acquired . | . . . . . . . . . Parts Built . | . . . . . . . . . Authchips . | . . . . . . . . . Time . | . . . . . . . . . Total Part Build Rating . | . . . . . . . . . Part Studies Acquired . | . . . . . . . . . Parts Repaired . | . . . . . . . . . Time . | . . . . . . . . . Parts Recycled . | . . . . . . . . . Recycled Matter . | . . . . . . . . . Retrieved Matter . | . . . . . . . . . Retrieved Components . | . . . . . . . . . Parts Scanalyzed . | . . . . . . . . . Part Schematics Acquired . | . . . . . . . . . Parts Damaged . | . . . . . . . . . Bothacking | -11 -10 -9 -9 -8 -7 -7 -7 -6 ------------ Run | Yrd Mat Mat Sto Mat Fac Low Low Fac Used RIF Installer . | . . . . . . . . . Robots Hacked . | . . . . . . . . . Non-combat . | . . . . . . . . . Combat . | . . . . . . . . . Robot Hacks Applied . | . . . . . . . . . Relay Couplers Released . | . . . . . . . . . Fabnet Peak Effective % . | . . . . . . . . . Robots Rewired . | . . . . . . . . . Allies Hacked . | . . . . . . . . . Hacks Repelled . | . . . . . . . . . Allies | -11 -10 -9 -9 -8 -7 -7 -7 -6 -------- Run | Yrd Mat Mat Sto Mat Fac Low Low Fac Total Allies 10 | . . . 10 . . . . . Largest Group 10 | . . . 10 2 . . . . Highest-Rated Group 88 | . . . 88 24 . . . . Highest-Rated Ally 16 | . . . 16 16 . . . . Total Orders . | . . . . . . . . . Ally Attacks 81 | . . . 52 29 . . . . Total Damage 698 | . . . 423 275 . . . . Kills 14 | . . . 9 5 . . . . Allies Corrupted . | . . . . . . . . . Allies Melted . | . . . . . . . . . Intel | -11 -10 -9 -9 -8 -7 -7 -7 -6 ------- Run | Yrd Mat Mat Sto Mat Fac Low Low Fac Active Infowar (turns) 2000 | 2 166 58 469 411 293 410 . 191 Terrain 318 | . 145 58 115 . . . . . Structural 1252 | . . . . 411 293 410 . 138 Seismic 380 | 2 21 . . 357 . . . . ECM 1521 | . . . 354 411 293 410 . 53 Robot Analysis Total . | . . . . . . . . . Derelict Logs Recovered 2 | . . . . . . 1 1 . Drone Launches 2 | . . . . . . . . 2 Drone Recoveries 2 | . . . . . . . . 2 Exploration | -11 -10 -9 -9 -8 -7 -7 -7 -6 ------------- Run | Yrd Mat Mat Sto Mat Fac Low Low Fac Turns Passed 3570 | 84 166 58 558 411 360 498 71 1364 Spaces Moved 2352 | 49 146 50 279 372 317 416 72 651 Core 277 | 3 . . 50 . . . . 224 Treads 333 | . . . 174 26 . . . 133 Legs . | . . . . . . . . . Wheels 950 | 46 62 . . . 157 416 72 197 Hover . | . . . . . . . . . Flight 792 | . 84 50 55 346 160 . . 97 Fastest Speed 28 | 50 80 117 100 28 32 100 100 40 Average Speed 125 | 78 101 117 149 79 99 111 100 177 Slowest Speed 560 | 80 117 117 250 160 178 115 100 560 Overloaded Moves . | . . . . . . . . . Propulsion Burnouts . | . . . . . . . . . Robots Hopped 1 | . . . . 1 . . . . Potential Cave-ins . | . . . . . . . . . Cave-ins Triggered . | . . . . . . . . . Exploration Rate (%) 28 | 5 28 5 54 45 12 71 14 18 Regions Visited 8 Branch Regions 3 Pre-discovered Areas 1 | . . . . . . . 1 . Known Exits Taken . | . . . . . . . . . Unknown Exits Taken 8 | 1 1 1 1 1 1 1 1 . Scrap Searched 1 | . . . . . . . 1 . Spaces Dug 9 | . . . . 9 . . . . Terrain Destroyed 237 | 5 . . 85 16 21 38 . 72 Melee . | . . . . . . . . . Projectile 9 | . . . . 9 . . . . AOE 228 | 5 . . 85 7 21 38 . 72 Terrain Rammed . | . . . . . . . . . Walls Destroyed . | . . . . . . . . . Machines Disabled . | . . . . . . . . . Actions | -11 -10 -9 -9 -8 -7 -7 -7 -6 --------- Run | Yrd Mat Mat Sto Mat Fac Low Low Fac Total 2755 | 81 163 49 374 444 346 429 71 798 Wait 127 | . 2 . 38 27 4 1 . 55 Move 2342 | 48 145 49 278 369 316 415 71 651 Hop 1 | . . . . 1 . . . . Pick Up 55 | 13 5 . 14 6 7 . . 10 Fast Attach 16 | . . . . . 2 . . 14 Attach 47 | 8 . . 11 6 4 1 . 17 Detach 6 | . 1 . . 2 1 . . 2 Swap 16 | . 3 . 4 7 1 . . 1 Drop 17 | 1 4 . 4 5 1 . . 2 Fire 123 | 11 2 . 25 21 10 12 . 42 Melee . | . . . . . . . . . Ram 3 | . 1 . . . . . . 2 Kick . | . . . . . . . . . Crush . | . . . . . . . . . Escape Stasis 2 | . . . . . . . . 2 Rewire . | . . . . . . . . . Trap . | . . . . . . . . . Miscellaneous . | . . . . . . . . . Route ------- -11/Scrapyard -10/Materials -9/Materials (discovered 2 exits: [*Min] / *Sto) -9/Storage -8/Materials -7/Factory -7/Lower Caves -7/Lower Caves -6/Factory History --------- Turn | Location | Event 21 | -11/Scrapyard | Discovered new exit (range 15) 85 | -11/Scrapyard | Entered Materials 86 | -10/Materials | Met a group of wandering Federalists 208 | -10/Materials | Discovered new exit (range 10) 251 | -10/Materials | Entered another Materials area 251 | -9/Materials | Evolved 2 slots: Propulsion x2 251 | -9/Materials | Discovered new exit (range 8) 304 | -9/Materials | Discovered new exit (range 16) 305 | -9/Materials | Build established: Mutant 309 | -9/Materials | Entered Storage 421 | -9/Storage | Lost 5 parts (2n3w) 441 | -9/Storage | Assisted by bots powering up and referring to "LRC-V3" 508 | -9/Storage | Lost 4 allies 742 | -9/Storage | Discovered new exit (range 16) 867 | -9/Storage | Entered Materials 867 | -8/Materials | Accompanied by 2 allies 867 | -8/Materials | Evolved 2 slots: Utility x2 937 | -8/Materials | Build established: Scavenger-Mutant 1256 | -8/Materials | Lost 4 parts (1p1n1u1w) 1269 | -8/Materials | Discovered new exit (range 10) 1278 | -8/Materials | Entered Factory 1278 | -7/Factory | Evolved 2 slots: Power x1, Utility x1 1620 | -7/Factory | Build established: Infiltrator-Mutant 1621 | -7/Factory | Discovered new exit (range 15) 1638 | -7/Factory | Entered Lower Caves 1948 | -7/Lower Caves | Attracted the attention of an 0b10 outpost 1960 | -7/Lower Caves | Learned Factory garrison access intel 2051 | -7/Lower Caves | Lost 5 parts (2p1n1u1w) 2128 | -7/Lower Caves | Discovered new exit (range 10) 2136 | -7/Lower Caves | Entered another Lower Caves area 2193 | -7/Lower Caves | Discovered new exit (range 6) 2207 | -7/Lower Caves | Entered Factory 2207 | -6/Factory | Evolved 2 slots: Power x1, Utility x1 2208 | -6/Factory | Loaded intel: 4 garrison access locations 2605 | -6/Factory | Lost 3 parts (1n1u1w) 2867 | -6/Factory | Build established: Mutant 2920 | -6/Factory | Core integrity fell below 50% 3100 | -6/Factory | Lost 5 parts (1p2n2u) 3226 | -6/Factory | Core integrity fell below 20% 3280 | -6/Factory | Lost 9 parts (2p2n4u1w) 3571 | -6/Factory | Destroyed by Y-54 Guardian with Gatling Laser Last Messages --------------- Acquired Imp. Deuterium Engine. O-24 Administrator: "IFF HANDSHAKE FAILED. SECURING TERMINAL." ALERT: Hostiles spotted, dispatching reinforcements to Terminal F007. System corrupted: Matter fused (-7). ALERT: Security rotation in progress. TF Node disabled. Imp. Sensor Array tumbles out of TF Node. Imp. Signal Interpreter tumbles out of TF Node. Slug penetrates Wall. Penetrated by Slug. Slug penetrates Wall. Flak Gun destroyed. Slug penetrates Wall. Lgt. Angular Momentum Engine destroyed. Y-54 Guardian suffers critical hit (Destroy). Destroyed Imp. Deuterium Engine. Slug penetrates Wall. Slug penetrates Y-54 Guardian. Map ----- +----------------------------------------------------+ | ?????????????????????????????????????????????????? | | ?????????????????????????????????????????????????? | | ?????????????????????????????????????????????????? | | ?????????????????????????????????????????????????? | | ?????????????????????????????????????????????????? | | ?????????????????????????????????????????????????? | | ?????????????????????????????????????????????????? | | ?????????????????????????????????????????????????? | | ?????????????????????????????????????????????????? | | ?????????????????## ?????????????????????????????? | | ?????????????????## ?? ?????????????????????????? | | ?????????????????## ?????????????????????????? | | ?????????????????## ?????????????????????????? | | ?????????????????## ! "##???????????????????????? | | ?????????????????## "##???????????????????????? | | ###########??????## "##???????????????????????? | | ###########??????## ! T?????????????????????????? | | ##??????## ??????????????????????????? | | ########## ??????????????????????????? | | """ """ ########## ???????????????????????????? | | """ """ #### + ?????????????????????????? | | """ """ #### ##/#######?????????????????????? | | #### # ######?????????????????????? | | """ """ + ! ##?????????????????????? | | """ """ ##########! ### ##?????????????????????? | | """ """ ################@###????????????????????? | | ##??????####### ##????????????????????? | | ! / ??? Y*##????????????????????? | | #######+######??????#### ##????????????????????? | | ###?????????##### ###????????????????????? | | """ #????????????? # ###????????????????????? | | """ !#?????????????? # ##?????????????????????? | | """ #?????????????? + ##?????????????????????? | | #?????????????? # # ?????????????????????? | | #?????????????? # # ?????????????????????? | | #????????????????k???????????????????????? | | #???????????????? ???????????????????????? | | #???????????????? ???????????????????????? | | #???????????????? ???????????????????????? | | #???????????????? ???????????????????????? | | ! #???????????????? ???????????????????????? | | #########????????????????????????????????????????? | | #####????????????????????????????????????????????? | | #????????????????????????????????????????????????? | | #????????????????????????????????????????????????? | | #????????????????????????????????????????????????? | | ?????????????????????????????????????????????????? | | ?????????????????????????????????????????????????? | | ?????????????????????????????????????????????????? | | ?????????????????????????????????????????????????? | +----------------------------------------------------+ Best States ------------- Heat Dissipation 51 Energy Generation 42 Energy Capacity 390 Matter Stores 300 Matter Capacity 300 Sight Range 16 Terrain Scan Range 14 Terrain Scan Density 10 ECM Strength 1 Armor Coverage 300 Resistance: KI 30 Evasion (%) 64 Targeting Accuracy 6 Recoil Reduction 4 Item Schematics ----------------- None Robot Schematics ------------------ None Fabricated ------------ Nothing Repaired ---------- Nothing Studied --------- None Alien Tech Used ----------------- None Achievements -------------- Heavy Suspicion Overwhelming Throw Away The Key Challenges ------------ None Game ------ Seed PartitionNuclearMatrix Manual? 0 Play Time 00:44:02 Cumulative 20.9 hours Start 2026.02.16 @ 13:18:04 End 2026.02.16 @ 14:00:00 Sessions 1 Manual Loads 0 Difficulty Rogue Special Mode None Game No. 52 Rogue 49 Adventurer 3 Explorer 0 Win Type - Total 0 Types 0/0/0/0/0/0/0/0/0/0 Lore% 12 Gallery% 26 Achievement% 15 Wizard Run 0 Options --------- Layout 1 ASCII 0 Keyboard 0 Movement Mouse Keybinds 0 Fullscreen 1 Font 16/SmallcapsGlow Map View 25x20 Zoom Use 94% Tactical HUD 0 Map Filters NONE Filters NONE Steam SD RUN: 403405ac-3c00-45ee-8a27-ff1d8580e0e5